bitfinex/quotes_ETHUSD_20250721
["timestamp","ask_amount","ask_price","bid_price","bid_amount"]
[1753063250860,3.55,3722.7,3722.6,0.001]
[1753063251055,3.55879075,3722.7,3722.6,0.001]
[1753063251208,3.90119075,3722.7,3722.6,0.001]
[1753063252966,6.58741311,3722.7,3722.6,0.001]
[1753063253256,7.39472236,3722.7,3722.6,0.001]
[1753063253839,4.7085,3722.7,3722.6,0.001]
[1753063254157,7.40351311,3722.7,3722.6,0.001]
[1753063254328,7.39472236,3722.7,3722.6,0.001]
[1753063254515,7.05232236,3722.7,3722.6,0.001]
[1753063254855,7.39472236,3722.7,3722.6,0.001]
[1753063258415,7.05232236,3722.7,3722.6,0.001]
[1753063258816,7.39472236,3722.7,3722.6,0.001]
[1753063260619,4.3661,3722.7,3722.6,0.001]
[1753063260825,4.37489075,3722.7,3722.6,0.001]
[1753063261050,7.06111311,3722.7,3722.6,0.001]
[1753063261223,4.3661,3722.7,3722.6,0.001]
[1753063262166,4.137,3722.9,3722.6,0.001]
[1753063262316,2.68622236,3722.7,3722.6,0.001]
[1753063262521,8.15202236,3722.7,3722.6,0.001]
[1753063262749,11.49442236,3722.7,3722.6,0.001]
[1753063263362,11.15202236,3722.7,3722.6,0.001]
[1753063263873,11.49442236,3722.7,3722.6,0.001]
[1753063264072,8.4658,3722.7,3722.6,0.001]
[1753063264373,5.4658,3722.7,3722.6,0.001]
[1753063264576,5.47459075,3722.7,3722.6,0.001]
[1753063265285,1.33759075,3722.7,3722.6,0.001]
[1753063265577,0.55,3722.7,3722.6,0.001]
[1753063265777,0.8009,3723.0,3722.6,0.4521]
[1753063266072,4.14579075,3722.9,3722.6,0.001]
[1753063266380,0.55,3722.8,3722.6,0.001]
[1753063267693,4.14579075,3722.9,3722.7,0.4511]
[1753063267694,0.55,3722.9,3722.7,0.4511]
[1753063267982,0.55,3723.2,3722.8,0.4511]
[1753063268175,0.8009,3723.8,3722.9,0.4511]
[1753063268380,0.1336,3723.2,3722.9,0.4511]
[1753063268545,0.1336,3723.5,3723.1,0.7622]
[1753063268740,0.1336,3723.8,3723.2,0.4511]
[1753063268974,0.1336,3723.8,3723.3,4.136]
[1753063269145,0.1336,3723.8,3723.4,0.4511]
[1753063269478,0.1336,3723.8,3723.5,0.4511]
[1753063269678,0.1336,3723.8,3723.3,4.136]
[1753063269885,0.1336,3723.8,3723.6,0.4511]
[1753063270177,5.28296753,3723.7,3723.1,0.7622]
[1753063270477,5.28296753,3723.7,3723.0,4.581]
[1753063270478,0.1336,3723.3,3723.0,0.445]
[1753063270654,0.1336,3723.3,3723.1,0.445]
[1753063270980,0.55,3723.6,3722.8,4.136]
[1753063270981,0.1336,3723.1,3722.8,4.136]
[1753063271276,0.1336,3722.9,3722.8,0.445]
[1753063271474,0.1336,3722.9,3722.6,0.001]
[1753063271683,0.1336,3722.8,3722.6,0.446]
[1753063271864,0.1336,3722.8,3722.6,4.582]
[1753063272203,0.1336,3722.8,3722.6,0.001]
[1753063272509,0.1336,3722.8,3722.7,0.445]
[1753063272790,0.55,3723.4,3722.7,0.445]
[1753063273092,0.1336,3723.1,3722.7,1.5474]
[1753063273250,0.1336,3723.1,3722.8,0.7519]
[1753063273456,0.1336,3723.1,3722.8,1.1969]
[1753063273784,0.1336,3723.1,3722.9,0.445]
[1753063274190,0.1336,3723.1,3723.0,0.445]
[1753063275285,0.13098302,3723.1,3723.0,0.445]
[1753063276484,0.13098302,3723.1,3722.7,4.136]
[1753063276485,0.55,3723.0,3722.7,4.136]
[1753063276693,0.1336,3722.8,3722.7,4.136]
[1753063276878,0.1336,3722.8,3722.7,4.581]
[1753063280999,0.1336,3722.8,3722.7,4.58]
[1753063282101,0.552,3723.1,3722.7,8.88549]
[1753063282102,0.002,3723.1,3722.7,8.88549]
[1753063282287,0.002,3723.1,3722.8,3.445]
[1753063282677,0.002,3723.1,3722.9,0.445]
[1753063283709,0.002,3723.1,3722.9,3.13107475]
[1753063284001,0.002,3723.1,3723.0,1.15715648]
[1753063284208,0.002,3723.1,3723.0,1.60215648]
[1753063286409,0.002,3723.1,3723.0,0.445]
[1753063287326,0.002,3723.1,3722.6,0.001]
[1753063287467,0.01079075,3723.1,3722.6,0.001]
[1753063287670,0.002,3723.1,3722.7,4.134]
[1753063287984,0.002,3723.1,3722.8,0.445]
[1753063288387,0.002,3723.1,3722.8,1.6785]
[1753063288773,0.002,3723.1,3722.9,0.445]
[1753063289305,0.002,3723.1,3723.0,0.445]
[1753063290498,0.002,3723.1,3723.0,4.579]
[1753063290702,0.002,3723.1,3723.0,0.445]
[1753063290901,0.002,3723.1,3723.0,4.579]
[1753063292112,0.002,3723.1,3723.0,5.16025]
[1753063292701,0.002,3723.1,3723.0,5.15929]
[1753063293411,0.002,3723.1,3723.0,4.57804]
[1753063295183,0.002,3723.1,3722.8,0.7755]
[1753063295529,0.002,3723.1,3722.9,4.133]
[1753063295694,0.01079075,3723.1,3722.8,0.445]
[1753063295895,0.01079075,3723.1,3722.6,0.001]
[1753063296109,0.55,3722.9,3722.6,0.001]
[1753063296407,0.00879075,3722.8,3722.7,4.133]
[1753063296577,0.55,3722.9,3722.7,4.133]
[1753063296782,0.6836,3722.7,3722.6,4.134]
[1753063297006,0.6836,3722.7,3722.6,4.579]
[1753063297203,0.1336,3722.7,3722.6,4.579]
[1753063298717,0.1356,3723.1,3722.6,4.579]
[1753063298931,0.1356,3723.1,3722.7,0.445]
[1753063301429,0.1356,3723.1,3723.0,2.6860059]
[1753063301638,0.002,3723.1,3723.0,10.2775059]
[1753063301809,0.002,3723.1,3723.0,11.0403059]
[1753063307099,0.002,3723.1,3723.0,15.8003059]
[1753063307303,0.002,3723.9,3723.8,3.46202886]
[1753063307526,0.002,3723.9,3723.8,10.59402886]
[1753063307726,0.002,3723.9,3723.8,11.05252886]
[1753063311607,0.002,3723.9,3723.8,11.18612886]
[1753063315763,0.002,3723.9,3723.8,15.94612886]
[1753063316062,0.002,3723.9,3723.8,17.82277932]
[1753063317543,0.002,3723.9,3723.8,11.00535046]
[1753063317742,0.002,3723.9,3723.8,3.5921]
[1753063318165,0.002,3723.9,3723.8,7.7221]
[1753063318530,0.002,3723.9,3723.8,7.2636]
[1753063319145,0.002,3723.9,3723.8,4.2636]
[1753063319960,0.002,3723.9,3723.8,0.5921]
[1753063320168,0.002,3723.9,3723.8,4.7221]
[1753063321101,0.002,3723.9,3723.8,7.7221]
[1753063321303,0.002,3723.9,3723.8,9.31839482]
[1753063321982,0.002,3723.9,3723.8,7.2636]
[1753063322191,0.002,3723.9,3723.8,4.13]
[1753063322394,0.7663,3723.9,3723.8,4.13]
[1753063322557,0.002,3723.9,3723.8,4.13]
[1753063322999,0.002,3723.9,3723.5,3.0]
[1753063323170,0.002,3723.9,3723.6,4.13]
[1753063323171,0.3453,3723.9,3723.6,4.13]
[1753063323371,0.00879075,3723.8,3723.6,4.13]
[1753063323694,0.1336,3723.8,3723.6,4.13]
[1753063324512,0.002,3723.9,3723.7,0.4585]
[1753063324714,0.002,3723.9,3723.8,4.13]
[1753063324928,0.002,3723.9,3723.8,4.5885]
[1753063325225,0.002,3723.9,3723.8,7.5885]
[1753063325416,0.002,3723.9,3723.8,8.39626137]
[1753063325917,0.002,3723.9,3723.8,11.08169023]
[1753063326407,0.002,3723.9,3723.8,11.83509023]
[1753063327715,0.002,3723.9,3723.8,3.80776137]
[1753063327875,0.002,3723.9,3723.8,7.13]
[1753063328685,0.002,3723.9,3723.8,7.5885]
[1753063328890,0.002,3723.9,3723.8,10.27392886]
[1753063329307,0.002,3723.9,3723.8,11.10292886]
[1753063330295,0.002,3723.9,3723.8,18.68792886]
[1753063330609,0.002,3723.9,3723.8,18.04250074]
[1753063331395,0.002,3723.9,3723.8,13.91250074]
[1753063331785,0.002,3723.9,3723.8,18.04150074]
[1753063333188,0.002,3723.9,3723.8,13.91250074]
[1753063333391,0.002,3723.9,3723.8,18.04150074]
[1753063333785,0.002,3723.9,3723.8,12.35607188]
[1753063333984,0.002,3723.9,3723.8,15.04150074]
[1753063334234,0.002,3723.9,3723.8,18.04150074]
[1753063339535,0.002,3723.9,3723.8,25.49299774]
[1753063340105,0.002,3723.9,3723.8,18.04150074]
[1753063343810,0.002,3723.9,3723.8,32.87492274]
[1753063344028,0.002,3723.9,3723.8,20.43047274]
[1753063344361,0.002,3723.9,3723.8,18.04150074]
[1753063345459,0.002,3723.9,3723.8,22.46082222]
[1753063345626,0.002,3723.9,3723.8,18.04050074]
[1753063347027,1e-08,3723.9,3723.8,48.04050074]
[1753063348374,1e-08,3723.9,3723.8,51.41350074]
[1753063348641,0.002,3724.6,3723.8,51.41350074]
[1753063348642,0.002,3724.6,3724.5,6.46762415]
[1753063348821,0.002,3724.6,3724.5,43.41553748]
[1753063349022,0.002,3724.6,3724.5,36.68393848]
[1753063349225,0.002,3724.6,3724.5,33.30027448]
[1753063349420,0.2495,3725.7,3725.5,5.68420346]
[1753063349620,0.2495,3725.7,3725.5,10.63890346]
[1753063349825,0.2495,3725.7,3725.5,12.74862336]
[1753063350020,0.2495,3725.7,3725.5,13.17902336]
[1753063350742,0.2495,3725.7,3725.5,13.37841376]
[1753063351125,0.2495,3725.7,3725.5,12.12031376]
[1753063351527,0.2495,3725.7,3725.5,12.55071376]
[1753063352137,0.2495,3725.7,3725.5,7.79392336]
[1753063352339,0.2495,3725.7,3725.5,7.2606]
[1753063352650,0.2495,3725.7,3725.5,9.94480346]
[1753063353037,0.2495,3725.7,3725.5,10.37520346]
[1753063354035,0.2495,3725.7,3725.5,7.2606]
[1753063354547,0.2495,3725.7,3725.5,9.94480346]
[1753063355032,0.2495,3725.7,3725.5,3.1336]
[1753063355232,0.2495,3725.7,3725.5,7.2596]
[1753063356146,0.2495,3725.7,3725.5,3.1336]
[1753063356449,0.2495,3725.7,3725.5,9.94380346]
[1753063356650,0.2495,3725.7,3725.5,10.37420346]
[1753063356855,0.2495,3725.7,3725.5,12.28081755]
[1753063357030,0.2495,3725.7,3725.5,13.04181755]
[1753063357423,0.2495,3725.7,3725.5,13.174703]
[1753063357827,0.2495,3725.7,3725.5,13.04181755]
[1753063361252,0.2495,3725.7,3725.5,11.85041755]
[1753063361961,0.2495,3725.7,3725.5,12.30791755]
[1753063362448,0.2495,3725.7,3725.5,7.72441755]
[1753063362655,0.2495,3725.7,3725.5,11.84941755]
[1753063363056,0.2495,3725.7,3725.5,12.30691755]
[1753063363731,0.2495,3725.7,3725.5,11.84941755]
[1753063364069,0.2495,3725.7,3725.5,5.81780346]
[1753063364251,0.2495,3725.7,3725.5,7.2586]
[1753063365627,0.2495,3725.7,3725.5,9.94280346]
[1753063365960,0.2495,3725.7,3725.5,10.40030346]
[1753063366323,0.2495,3725.7,3725.5,11.19190346]
[1753063366529,0.2495,3725.7,3725.5,13.71971173]
[1753063366948,0.2515,3725.6,3725.5,13.71971173]
[1753063367229,0.2515,3725.6,3725.5,9.59471173]
[1753063367432,0.2515,3725.6,3725.5,13.71971173]
[1753063368458,0.2515,3725.6,3725.5,9.59471173]
[1753063368663,0.2515,3725.6,3725.5,13.71971173]
[1753063368859,0.2515,3725.6,3725.5,18.47971172]
[1753063369035,0.2515,3725.6,3725.5,35.25733072]
[1753063369235,0.2495,3725.7,3725.6,5.68413141]
[1753063369438,0.02,3725.9,3725.6,5.68413141]
[1753063369439,0.02,3725.9,3725.8,6.45638733]
[1753063369654,0.02,3725.9,3725.8,14.01617133]
[1753063369976,0.02,3725.9,3725.8,17.36764133]
[1753063370282,0.02,3725.9,3725.8,11.17148733]
[1753063370827,0.02,3725.9,3725.8,23.79715333]
[1753063371028,0.02,3725.9,3725.8,24.58674525]
[1753063371228,0.02,3725.9,3725.8,46.58349925]
[1753063371457,0.02,3725.9,3725.8,22.10232125]
[1753063371658,0.002,3726.4,3726.3,5.68362719]
[1753063371866,0.002,3726.4,3726.3,14.56762718]
[1753063372027,0.002,3726.4,3726.3,16.42636109]
[1753063372234,0.002,3726.4,3726.3,17.66376109]
[1753063373160,9.855372,3727.2,3726.8,2.68326714]
[1753063373364,9.855372,3727.2,3726.8,9.83409981]
[1753063373567,9.855372,3727.2,3726.8,9.94086714]
[1753063373868,9.855372,3727.2,3726.8,11.66078901]
[1753063374285,9.855372,3727.2,3726.8,3.1336]
[1753063374565,9.855372,3727.2,3726.8,9.94086714]
[1753063374869,9.855372,3727.2,3726.8,10.39836714]
[1753063376259,9.855372,3727.2,3726.8,15.15836713]
[1753063378289,9.855372,3727.2,3726.8,15.96186713]
[1753063378290,1e-08,3726.9,3726.8,15.96186713]
[1753063378462,1e-08,3726.9,3726.8,17.82638904]
[1753063378652,1e-08,3726.9,3726.8,47.82638904]
[1753063378958,1e-08,3726.9,3726.8,17.82638904]
[1753063379370,1e-08,3726.9,3726.8,34.37593404]
[1753063379551,1e-08,3726.9,3726.8,32.15493404]
[1753063379747,1e-08,3726.9,3726.8,27.75493404]
[1753063381791,1e-08,3726.9,3726.8,17.82638904]
[1753063382088,1e-08,3726.9,3726.8,20.02638904]
[1753063382309,1e-08,3726.9,3726.8,12.44138904]
[1753063382595,1e-08,3726.9,3726.8,7.57686713]
[1753063382769,1e-08,3726.9,3726.8,11.69886713]
[1753063382965,1e-08,3726.9,3726.8,14.69886713]
[1753063383292,1e-08,3726.9,3726.8,10.57686713]
[1753063383450,1e-08,3726.9,3726.8,14.69886713]
[1753063383854,1e-08,3726.9,3726.8,0.1336]
[1753063384077,0.7857,3726.8,3726.4,0.1336]
[1753063384305,0.7857,3726.8,3725.5,11.19299999]
[1753063384306,0.7857,3726.6,3726.5,4.122]
[1753063384489,1.129,3726.6,3726.5,4.122]
[1753063385711,0.767,3726.5,3726.2,0.1336]
[1753063385917,0.00879075,3726.4,3726.2,0.1336]
[1753063386215,0.767,3726.4,3726.3,4.122]
[1753063386416,0.767,3726.4,3726.2,3.0]
[1753063386615,0.767,3726.4,3726.3,4.122]
[1753063387194,1.1103,3726.4,3726.3,4.122]
[1753063387675,0.767,3726.4,3726.3,4.122]
[1753063388089,1.1103,3726.4,3726.3,4.122]
[1753063388796,0.3433,3726.4,3725.4,3.0]
[1753063389011,0.8262,3726.3,3725.9,0.1336]
[1753063389210,0.8262,3726.3,3726.1,3.0]
[1753063389414,0.8262,3726.3,3726.1,3.1336]
[1753063389597,0.8262,3726.3,3726.2,4.122]
[1753063389917,1.1695,3726.3,3726.2,4.122]
[1753063390124,0.8262,3726.3,3726.2,9.80569921]
[1753063390329,0.8262,3726.3,3726.2,7.122]
[1753063390686,0.8262,3726.3,3726.2,9.80569921]
[1753063390984,0.8262,3726.3,3726.2,7.122]
[1753063391217,1.1695,3726.3,3726.2,7.122]
[1753063392402,0.8262,3726.3,3726.2,7.122]
[1753063392717,0.8332,3726.6,3726.3,3.0]
[1753063392924,0.8332,3726.6,3726.5,5.68348316]
[1753063393093,0.8332,3726.6,3726.5,3.1336]
[1753063393289,0.8332,3726.6,3726.5,5.81708316]
[1753063393618,1e-08,3726.9,3726.7,2.68332919]
[1753063393619,0.83320001,3726.9,3726.7,2.68332919]
[1753063393820,0.83320001,3726.9,3726.8,4.122]
[1753063394115,0.83320001,3726.9,3726.8,4.2556]
[1753063395296,1e-08,3726.9,3726.8,11.10876712]
[1753063395503,1e-08,3726.9,3726.8,11.55176712]
[1753063397299,1e-08,3726.9,3726.8,17.11086711]
[1753063397497,1e-08,3726.9,3726.8,31.64536911]
[1753063397726,1e-08,3726.9,3726.8,17.11086711]
[1753063399689,1e-08,3726.9,3726.8,27.26311211]
[1753063399928,1e-08,3726.9,3726.8,26.34685011]
[1753063401794,0.02,3727.9,3727.2,0.7819]
[1753063401997,0.02,3727.9,3727.8,5.68254734]
[1753063402193,0.02,3727.9,3727.8,9.93714734]
[1753063403917,0.02,3727.9,3727.8,7.2546]
[1753063404530,0.02,3727.9,3727.8,3.1336]
[1753063404705,1.1477,3727.9,3727.8,4.12]
[1753063405635,1.1477,3727.9,3727.6,0.1336]
[1753063405839,0.8044,3727.9,3727.4,3.0]
[1753063406060,0.8044,3727.9,3726.7,6.433]
[1753063406061,0.7717,3727.7,3727.3,0.1336]
[1753063406236,0.91409075,3727.6,3727.4,4.12]
[1753063406435,1.115,3727.5,3726.8,0.1336]
[1753063406594,0.1336,3727.1,3726.9,4.12]
[1753063406799,1.15,3727.0,3726.9,4.12]
[1753063407000,0.35209075,3727.0,3725.5,0.98640272]
[1753063407204,0.6836,3726.8,3726.2,0.1336]
[1753063407460,0.9403,3726.6,3726.3,4.12]
[1753063407823,0.8067,3726.6,3726.3,4.12]
[1753063408160,0.8067,3726.6,3726.4,3.0]
[1753063408722,0.7949,3727.1,3726.5,2.68343163]
[1753063408939,0.7949,3727.1,3726.6,6.80338365]
[1753063409248,0.7949,3727.1,3726.8,0.1336]
[1753063409451,0.7949,3727.1,3726.9,4.12]
[1753063410446,0.1336,3727.5,3727.0,0.69369319]
[1753063410757,0.552,3727.8,3727.0,3.82729319]
[1753063410758,0.7605,3727.6,3727.0,3.82729319]
[1753063410907,0.7605,3727.6,3727.0,3.69369319]
[1753063411238,0.7605,3727.6,3727.3,0.1336]
[1753063411433,0.7605,3727.6,3727.4,4.12]
[1753063412455,1.1038,3727.6,3727.3,0.1336]
[1753063412758,0.7605,3727.6,3727.5,4.12]
[1753063413305,0.002,3727.8,3727.5,7.54536]
[1753063413607,0.002,3727.8,3727.7,0.1336]
[1753063413808,0.002,3727.8,3727.7,3.1336]
[1753063414065,0.002,3727.8,3727.7,5.8162193]
[1753063415263,0.002,3727.8,3727.7,3.1336]
[1753063415410,0.002,3727.8,3727.7,7.12066534]
[1753063415610,0.002,3727.8,3727.7,7.56366534]
[1753063415835,0.002,3727.8,3727.7,11.68366534]
[1753063416061,0.1336,3728.4,3727.8,3.0]
[1753063416215,0.7826,3729.8,3728.8,2.68182793]
[1753063416549,0.7826,3729.8,3728.8,9.93783806]
[1753063416847,0.7826,3729.8,3728.8,12.05367874]
[1753063417043,0.02,3729.9,3728.8,12.05367874]
[1753063418117,0.02,3729.9,3728.9,3.66552714]
[1753063418318,0.7743,3731.5,3729.8,3.8003]
[1753063418564,0.02,3731.9,3730.8,6.48069026]
[1753063418741,0.02,3731.9,3730.8,3.0]
[1753063418742,0.3433,3731.6,3730.8,3.0]
[1753063419051,0.8067,3730.9,3730.8,4.139]
[1753063419252,0.02,3730.9,3730.8,6.81939026]
[1753063419418,0.02,3730.9,3730.8,7.139]
[1753063421367,0.02,3730.9,3730.8,10.26129026]
[1753063421887,0.02,3730.9,3730.8,11.55546439]
[1753063422836,0.02,3730.9,3730.8,10.26129026]
[1753063423666,0.02,3730.9,3730.8,3.0]
[1753063423852,0.02,3730.9,3730.8,7.13599901]
[1753063424058,0.02,3730.9,3730.8,7.57789901]
[1753063424362,0.02,3730.9,3730.8,10.25828927]
[1753063424672,0.02,3730.9,3730.8,11.55216874]
[1753063425454,0.02,3730.9,3730.8,2.99999901]
[1753063425678,0.02,3730.9,3730.8,7.13799901]
[1753063426278,0.02,3730.9,3730.8,7.27159901]
[1753063428469,0.02,3730.9,3730.8,9.95198927]
[1753063428792,0.02,3730.9,3730.8,7.27159901]
[1753063428960,0.02,3730.9,3730.8,10.94719383]
[1753063429162,0.02,3730.9,3730.8,11.38909383]
[1753063432964,0.02,3730.9,3730.8,4.12880357]
[1753063433192,0.02,3730.9,3730.8,7.26559901]
[1753063434018,0.02,3730.9,3730.8,10.38788927]
[1753063434622,0.02,3730.9,3730.8,9.94598927]
[1753063435119,0.02,3730.9,3730.8,3.13359901]
[1753063435303,0.02,3730.9,3730.8,7.26459901]
[1753063436721,0.3633,3730.9,3730.8,4.131]
[1753063437527,0.02,3730.9,3730.8,4.131]
[1753063438117,0.7934,3730.9,3730.8,4.131]
[1753063438316,1.1367,3730.9,3730.8,4.13]
[1753063438516,1.1367,3730.9,3730.5,0.1336]
[1753063438825,0.3433,3730.8,3730.6,4.13]
[1753063439914,0.7934,3730.9,3730.6,4.13]
[1753063442143,0.00879075,3730.8,3730.5,0.1336]
[1753063442440,0.3433,3730.7,3730.6,4.129]
[1753063443027,0.927,3730.9,3730.6,4.129]
[1753063443202,0.7934,3730.9,3730.6,4.129]
[1753063443940,0.7934,3730.9,3730.8,2.81399026]
[1753063443941,0.02,3730.9,3730.8,2.81399026]
[1753063444115,0.02,3730.9,3730.8,4.7035]
[1753063444321,0.02,3730.9,3730.8,4.2616]
[1753063445411,0.02,3730.9,3730.8,7.38389026]
[1753063445625,0.02,3730.9,3730.8,10.38389026]
[1753063445833,0.02,3730.9,3730.8,11.75975945]
[1753063446039,0.02,3730.9,3730.8,12.52875945]
[1753063447713,0.02,3730.9,3730.8,17.28875944]
[1753063448322,0.02,3730.9,3730.8,17.71224678]
[1753063448736,0.02,3730.9,3730.8,17.28875944]
[1753063450017,0.02,3731.9,3731.8,5.679672]
[1753063450219,0.02,3731.9,3731.8,9.803672]
[1753063450556,0.02,3731.9,3731.8,9.937272]
[1753063450860,0.02,3731.9,3731.8,10.374372]
[1753063453922,0.02,3731.9,3731.8,6.250372]
[1753063454155,0.02,3731.9,3731.8,11.0823392]
[1753063455564,0.02,3731.9,3731.8,8.4026672]
[1753063455728,0.02,3731.9,3731.8,11.0823392]
[1753063456133,0.02,3731.9,3731.8,8.4026672]
[1753063456439,0.02,3731.9,3731.8,7.9645672]
[1753063457133,0.02,3731.9,3731.8,4.2576]
[1753063457680,0.8277,3731.9,3731.2,4.75999999]
[1753063457856,0.00879075,3731.8,3731.4,3.0]
[1753063458025,1.171,3731.9,3731.6,3.0]
[1753063458241,0.3433,3731.8,3731.7,7.124]
[1753063458446,0.8277,3731.9,3731.7,7.124]
[1753063458982,0.3433,3731.8,3731.7,7.124]
[1753063459779,0.83649075,3731.9,3731.8,3.0]
[1753063459780,0.02,3731.9,3731.8,3.0]
[1753063459940,0.02,3731.9,3731.8,0.5707]
[1753063460144,0.02,3731.9,3731.8,3.5707]
[1753063460375,0.02,3731.9,3731.8,3.1336]
[1753063460767,0.02,3731.9,3731.8,3.5707]
[1753063460974,0.02,3731.9,3731.8,4.39786731]
[1753063462798,0.02,3731.9,3731.8,7.07753931]
[1753063462947,0.02,3731.9,3731.8,4.39786731]
[1753063463443,0.02,3731.9,3731.8,7.10433603]
[1753063463648,0.02,3731.9,3731.8,7.07753931]
[1753063464093,0.02,3731.9,3731.8,7.85933931]
[1753063464294,0.02,3731.9,3731.5,2.67982052]
[1753063464517,0.02,3731.9,3731.8,3.0]
[1753063464680,0.02,3731.9,3731.8,6.116772]
[1753063465392,0.02,3731.9,3731.8,10.254772]
[1753063466369,0.02,3731.9,3731.8,11.047972]
[1753063466568,0.02,3731.9,3731.8,12.68872592]
[1753063470984,0.02,3731.9,3731.8,17.44872591]
[1753063471954,1e-08,3731.9,3731.8,51.49961153]
[1753063472292,0.002,3732.4,3732.3,6.46201302]
[1753063472588,0.002,3732.4,3731.3,4.14]
[1753063472589,0.7637,3732.0,3731.3,4.14]
[1753063472889,0.7637,3732.0,3731.9,2.6796002]
[1753063473187,0.7637,3732.3,3732.2,2.67938481]
[1753063473414,0.002,3732.4,3732.3,5.67931302]
[1753063473551,0.002,3732.4,3732.3,6.11641302]
[1753063474302,0.002,3732.4,3732.3,6.25001302]
[1753063474457,0.002,3732.4,3732.3,7.56635657]
[1753063474655,0.002,3732.4,3732.3,7.76334048]
[1753063477483,0.002,3732.4,3732.3,7.89985476]
[1753063477688,0.002,3732.4,3732.3,7.76334048]
[1753063478189,0.002,3732.4,3732.3,7.56635657]
[1753063480091,0.002,3732.4,3732.3,8.32165657]
[1753063480997,1e-08,3732.4,3732.3,13.88978857]
[1753063481600,0.3433,3734.2,3732.3,13.88978857]
[1753063481601,0.02,3734.9,3732.6,0.55]
[1753063481802,0.8226,3734.2,3733.8,0.1336]
[1753063481952,0.8226,3734.2,3733.8,4.3616]
[1753063482382,0.8226,3734.2,3733.8,7.03983664]
[1753063483295,0.8226,3734.2,3733.8,4.3616]
[1753063483695,0.8226,3734.2,3733.8,8.04382567]
[1753063483999,0.8077,3734.5,3733.8,8.47862567]
[1753063484999,0.8077,3734.5,3733.8,8.04382567]
[1753063486905,0.8077,3734.5,3733.8,11.04382567]
[1753063487776,0.8077,3734.5,3733.8,8.36558903]
[1753063487985,0.8077,3734.5,3733.8,7.3616]
[1753063488284,0.8077,3734.5,3733.8,10.47463664]
[1753063488490,0.8077,3734.5,3733.8,10.03983664]
[1753063489711,0.8077,3734.5,3733.8,10.47463664]
[1753063490323,0.8077,3734.5,3733.8,10.03983664]
[1753063490620,0.8077,3734.5,3733.8,11.35513764]
[1753063490781,0.8077,3734.5,3733.8,4.448901]
[1753063490982,1.151,3734.5,3733.8,7.3466]
[1753063491381,1.151,3734.5,3733.8,3.1336]
[1753063491715,1.1454,3733.9,3733.8,7.3456]
[1753063491887,0.8021,3733.9,3733.8,7.3456]
[1753063492094,0.02,3733.9,3733.8,7.7804]
[1753063492417,0.02,3733.9,3733.8,7.3456]
[1753063492614,0.02,3733.9,3733.8,3.1336]
[1753063492820,0.02,3733.9,3733.8,7.3456]
[1753063494280,0.02,3733.9,3733.8,10.02383664]
[1753063494518,0.02,3733.9,3733.8,11.03520325]
[1753063495195,0.02,3733.9,3733.8,10.60040325]
[1753063495502,0.02,3733.9,3733.8,10.02383664]
[1753063497435,0.02,3733.9,3733.8,10.45863664]
[1753063503152,0.02,3733.9,3733.8,11.24733664]
[1753063503859,1e-08,3733.9,3733.8,44.24082883]
[1753063504066,1e-08,3733.9,3733.8,52.57547876]
[1753063505182,1e-08,3733.9,3733.8,42.26983476]
[1753063505326,1e-08,3733.9,3733.8,33.82426956]
[1753063506137,1e-08,3733.9,3733.3,5.51259959]
[1753063506138,0.7832,3733.8,3732.5,3.4690588]
[1753063506351,0.7832,3733.8,3732.4,1.84641373]
[1753063506352,1e-08,3733.9,3733.2,0.7899]
[1753063506536,1e-08,3733.9,3733.5,3.0]
[1753063506725,1e-08,3733.9,3733.3,4.24478595]
[1753063506726,1e-08,3733.9,3733.7,2.67824288]
[1753063507068,1e-08,3733.9,3733.6,6.89637756]
[1753063507273,1e-08,3733.9,3733.6,4.218]
[1753063507628,1e-08,3733.9,3733.7,3.0]
[1753063507922,1e-08,3733.9,3732.9,1.2412]
[1753063507923,1e-08,3733.9,3733.8,4.217]
[1753063508166,1e-08,3733.9,3733.8,4.218]
[1753063508465,1e-08,3733.9,3733.8,7.218]
[1753063508772,0.34330001,3733.9,3733.8,4.218]
[1753063508972,1.16650001,3733.9,3733.8,4.218]
[1753063509466,1e-08,3733.9,3732.1,0.001]
[1753063509687,0.793,3732.8,3732.1,0.001]
[1753063509838,0.8173,3732.6,3732.1,0.001]
[1753063510378,0.8173,3732.6,3732.2,4.254]
[1753063510671,2.67829274,3733.8,3732.2,4.254]
[1753063510672,0.8173,3732.3,3732.2,4.254]
[1753063510847,0.788,3732.2,3732.1,0.001]
[1753063511163,1.0313,3732.2,3732.1,0.001]
[1753063512986,1.62109075,3732.2,3732.1,0.001]
[1753063513327,4.30047556,3732.2,3732.1,0.001]
[1753063513545,1.6123,3732.2,3732.1,0.001]
[1753063513969,1.0623,3732.2,3732.1,0.001]
[1753063514983,0.819,3732.2,3732.1,0.001]
[1753063515185,0.8181,3733.2,3732.5,3.0]
[1753063515391,0.8181,3733.2,3732.6,4.254]
[1753063515883,0.00879075,3733.1,3732.6,4.254]
[1753063516039,0.8125,3733.0,3732.1,0.001]
[1753063516234,0.8125,3732.6,3732.4,4.259]
[1753063516776,1.01649075,3732.5,3732.1,0.001]
[1753063516940,0.7644,3732.3,3732.1,0.001]